bitfinex/quotes_ETHUSD_20240811
["timestamp","ask_amount","ask_price","bid_price","bid_amount"]
[1723408554828,2.7319,2562.4,2561.7,5.73247]
[1723408555036,7.7823,2562.2,2561.7,5.73247]
[1723408555432,0.07784779,2562.1,2561.9,2.73233]
[1723408555630,7.7823,2562.2,2561.9,2.73233]
[1723408555631,7.7823,2562.2,2561.9,3.57875]
[1723408555927,7.7823,2562.2,2562.0,2.73215]
[1723408556128,7.7823,2562.2,2562.1,2.73213]
[1723408556871,7.7823,2562.2,2562.0,2.73222]
[1723408557070,7.7823,2562.2,2561.9,2.73234]
[1723408557229,7.7823,2562.2,2561.8,2.73239]
[1723408557429,7.7823,2562.2,2562.1,2.73213]
[1723408557636,7.7823,2562.2,2561.8,0.85885817]
[1723408557637,0.0880645,2562.1,2562.0,2.73214]
[1723408557938,0.08795708,2562.1,2562.0,2.73214]
[1723408559239,0.08795708,2562.1,2562.0,12.11352573]
[1723408559430,7.7823,2562.7,2562.4,2.7318]
[1723408559664,7.7823,2562.7,2562.0,3.0]
[1723408559665,0.07784779,2562.6,2562.0,3.0]
[1723408559839,2.80946779,2562.6,2562.0,2.73215]
[1723408560044,2.80946779,2562.6,2562.0,5.46432]
[1723408560331,7.7823,2562.7,2562.5,2.73168]
[1723408560531,7.7823,2562.7,2562.3,2.73185]
[1723408560751,0.07784779,2562.6,2562.3,2.73185]
[1723408560951,7.7823,2562.7,2562.3,2.73185]
[1723408561369,7.7823,2563.2,2562.4,3.62804198]
[1723408561680,7.7823,2563.8,2563.1,2.73106]
[1723408561826,0.07784779,2563.7,2563.4,2.73072]
[1723408562031,7.7823,2563.8,2563.5,2.73057]
[1723408562232,7.7823,2563.8,2563.7,2.73042]
[1723408562428,7.7823,2564.2,2563.9,2.73013]
[1723408563234,7.7823,2564.2,2563.7,3.003412]
[1723408563460,7.7823,2564.2,2564.0,2.73009]
[1723408563768,7.7823,2564.2,2563.9,2.73013]
[1723408564269,7.7823,2564.2,2563.8,3.2803]
[1723408564432,0.07784779,2564.1,2563.5,5.73059]
[1723408564636,0.07784779,2564.1,2563.5,6.303639]
[1723408564879,0.07784779,2564.1,2563.5,6.303619]
[1723408565030,0.08661936,2564.0,2563.7,2.73033]
[1723408565697,0.08661936,2564.0,2563.5,6.303629]
[1723408565913,0.08661936,2564.0,2563.7,2.73035]
[1723408567203,0.08661936,2564.0,2563.3,2.73077]
[1723408567403,0.07784779,2564.1,2563.2,2.73089]
[1723408567720,0.07784779,2564.1,2563.7,2.73036]
[1723408568019,0.07784779,2564.1,2562.4,6.48092348]
[1723408568020,7.7823,2563.4,2562.4,6.48092348]
[1723408568179,0.07784779,2563.3,2562.7,2.73139]
[1723408568379,0.08650056,2563.2,2562.5,0.67541085]
[1723408568578,0.08650056,2563.2,2563.0,2.73116]
[1723408568772,0.07784779,2563.3,2563.0,2.73116]
[1723408568979,0.08648808,2563.2,2562.6,2.73155]
[1723408569273,0.08648808,2563.2,2563.1,5.46212]
[1723408569527,0.08648808,2563.2,2563.1,6.008332]
[1723408569824,7.444,2563.8,2563.1,6.008332]
[1723408569825,7.444,2563.8,2563.4,5.46135]
[1723408570036,2.80827779,2563.7,2562.4,3.75028458]
[1723408570178,0.07784779,2563.7,2562.5,2.73166]
[1723408570484,0.07784779,2563.7,2563.4,2.73073]
[1723408570693,0.07784779,2563.7,2563.2,2.73085]
[1723408571019,7.444,2563.6,2562.8,2.73136]
[1723408571214,0.07784779,2563.5,2562.9,3.0]
[1723408571421,3.56072257,2563.5,2562.6,0.273166]
[1723408571582,7.444,2563.4,2562.4,2.73175]
[1723408571775,3.0,2563.9,2562.4,2.73175]
[1723408571776,2.73107,2563.1,2562.4,2.73175]
[1723408571988,2.73107,2563.1,2562.5,2.73169]
[1723408571989,0.07784779,2563.0,2562.5,2.73169]
[1723408572211,0.07784779,2563.0,2562.5,2.73161]
[1723408572398,0.07784779,2563.1,2562.6,2.73156]
[1723408572592,0.08323881,2563.0,2562.6,2.73156]
[1723408572797,0.08323881,2563.0,2562.4,2.73175]
[1723408572993,2.81440881,2563.0,2562.5,0.55]
[1723408573226,7.52184779,2562.9,2562.4,2.73174]
[1723408573379,7.444,2562.9,2562.4,3.278145]
[1723408573578,7.444,2563.2,2563.0,2.73107]
[1723408573785,7.444,2563.2,2562.8,2.7313]
[1723408574325,3.0,2564.2,2562.3,2.7319]
[1723408574326,7.444,2564.0,2563.4,2.73065]
[1723408574512,2.7295,2564.6,2562.9,0.07803165]
[1723408574513,0.07784779,2563.9,2563.2,2.7309]
[1723408574684,2.7295,2564.6,2563.1,2.73096]
[1723408574685,2.73044,2563.7,2563.1,2.73096]
[1723408574887,2.80840779,2563.6,2563.0,2.73109]
[1723408575213,0.07784779,2563.6,2563.1,3.0]
[1723408575518,7.444,2563.2,2562.7,2.73145]
[1723408575730,0.07784779,2563.1,2562.6,2.73153]
[1723408575883,7.444,2563.2,2562.8,2.73136]
[1723408576604,7.444,2563.2,2562.8,5.46267]
[1723408576780,7.444,2563.2,2562.8,2.73131]
[1723408577285,7.444,2563.2,2562.7,2.73146]
[1723408577479,0.07784779,2563.1,2562.7,2.73146]
[1723408577685,0.07784779,2563.1,2562.5,3.0]
[1723408577906,0.07784779,2563.1,2562.6,3.28159]
[1723408578427,2.80900779,2563.1,2562.6,2.73158]
[1723408578934,0.07784779,2563.1,2562.6,2.73158]
[1723408579427,0.07784779,2563.1,2562.5,2.73168]
[1723408579790,7.444,2562.8,2562.0,2.73213]
[1723408579990,0.07784779,2562.7,2562.3,2.73191]
[1723408580191,7.444,2562.8,2561.7,2.73253]
[1723408580192,7.444,2562.8,2562.6,2.73159]
[1723408580419,2.73034,2563.8,2562.6,2.73159]
[1723408580420,2.7295,2564.6,2562.6,0.63216837]
[1723408580652,7.444,2563.7,2563.1,2.731]
[1723408580852,7.444,2563.7,2563.2,2.80892526]
[1723408581053,7.444,2563.7,2563.4,2.7307]
[1723408581224,7.444,2563.7,2563.5,2.73063]
[1723408581430,7.444,2563.7,2563.2,2.73088]
[1723408581668,7.444,2563.7,2563.3,0.0780154]
[1723408581963,7.444,2563.7,2563.6,2.73053]
[1723408584043,7.52744885,2563.7,2563.6,5.46106]
[1723408584566,7.52744885,2563.7,2563.6,2.73053]
[1723408585478,0.08344885,2563.7,2563.6,5.734113]
[1723408585639,0.08344885,2563.7,2563.6,9.284113]
[1723408585839,0.08344885,2563.7,2563.6,6.003583]
[1723408586039,2.80780779,2564.2,2563.4,2.7307]
[1723408586040,7.444,2564.1,2563.4,2.7307]
[1723408586282,7.444,2564.1,2562.6,2.44404934]
[1723408586283,7.444,2563.3,2562.4,3.74913845]
[1723408586580,7.444,2563.3,2562.2,2.44404934]
[1723408586581,7.444,2563.7,2563.3,2.73078]
[1723408586875,7.444,2563.7,2563.3,5.46157]
[1723408587079,7.444,2563.7,2563.3,2.73078]
[1723408587290,7.444,2563.7,2563.3,5.46157]
[1723408587574,7.444,2563.7,2563.3,2.73077]
[1723408587575,0.08340577,2563.6,2563.3,2.73077]
[1723408587773,0.08340577,2563.6,2563.5,5.46128]
[1723408587979,7.444,2564.1,2563.8,2.73024]
[1723408588180,7.444,2564.1,2563.7,2.73042]
[1723408588181,0.0836387,2564.0,2563.7,2.73042]
[1723408588340,0.0836387,2564.0,2563.7,2.7304]
[1723408588541,0.16148649,2564.0,2563.5,3.0]
[1723408588845,0.0836387,2564.0,2563.6,0.07801422]
[1723408589048,0.0836387,2564.0,2563.9,2.73021]
[1723408589342,0.0836387,2564.0,2563.7,0.55]
[1723408589343,7.6028,2564.8,2564.4,2.72958]
[1723408589557,7.6028,2564.8,2564.6,2.72939]
[1723408589974,7.6028,2564.8,2564.4,2.7296]
[1723408590175,0.07784779,2564.7,2564.0,5.73004]
[1723408590383,2.72943,2564.7,2564.1,2.72997]
[1723408590682,2.72943,2564.7,2564.2,3.0]
[1723408590683,0.02784779,2564.6,2564.2,3.0]
[1723408590887,0.02784779,2564.6,2563.8,2.73031]
[1723408590888,7.6028,2564.5,2563.8,2.73031]
[1723408591043,0.02784779,2564.4,2563.8,2.73031]
[1723408591384,0.02784779,2564.4,2563.8,2.73025]
[1723408591385,2.75760779,2564.4,2563.8,2.73025]
[1723408591753,2.75760779,2564.4,2563.5,2.73063]
[1723408591754,10.33262,2564.3,2563.5,2.73063]
[1723408591991,7.6028,2564.0,2563.2,2.73089]
[1723408592289,7.6028,2564.0,2563.9,2.73021]
[1723408592584,7.6028,2564.0,2563.3,0.07801211]
[1723408592585,7.6028,2564.0,2563.1,2.73103]
[1723408592888,2.75811779,2563.9,2563.3,2.73075]
[1723408593189,7.6028,2563.7,2563.0,2.73113]
[1723408593388,2.75839779,2563.6,2563.0,2.73113]
[1723408593596,0.02784779,2563.6,2563.2,2.73094]
[1723408593761,7.6028,2563.7,2563.5,2.73064]
[1723408593963,7.6028,2563.7,2563.3,2.73084]
[1723408594283,7.6028,2563.7,2563.3,2.73078]
[1723408594792,7.6028,2563.7,2563.2,2.73094]
[1723408594958,7.6028,2563.7,2563.3,0.55]
[1723408595166,7.6028,2563.7,2562.7,2.7314]
[1723408595167,2.73081,2563.4,2562.7,2.7314]
[1723408595506,2.73081,2563.4,2562.3,0.51761693]
[1723408595507,7.6028,2563.9,2563.4,2.73067]
[1723408595648,7.6028,2563.9,2563.5,0.273067]
[1723408596001,7.6028,2563.9,2563.2,2.73094]
[1723408596002,7.6028,2563.9,2563.6,2.73047]
[1723408596291,7.6028,2563.9,2563.8,2.73032]
[1723408596493,7.6028,2563.9,2563.4,0.07800737]
[1723408596650,7.6028,2563.9,2563.8,2.73032]
[1723408597052,7.6028,2563.9,2563.7,2.73032]
[1723408597498,0.02784779,2563.8,2563.3,5.73081]
[1723408597662,0.02784779,2563.8,2563.4,2.73067]
[1723408597988,0.0784904,2563.7,2563.3,8.46159]
[1723408598191,7.6028,2563.9,2563.3,8.46159]
[1723408598192,7.6028,2563.9,2563.5,2.73057]
[1723408598362,0.07857712,2563.8,2563.6,2.73047]
[1723408598765,0.07857712,2563.8,2563.5,2.73057]
[1723408600194,0.07857712,2563.8,2563.5,2.73054]
[1723408600562,0.07857712,2563.8,2563.3,6.576949]
[1723408601377,2.80891712,2563.8,2563.3,6.576929]
[1723408601599,2.80891712,2563.8,2562.9,2.73121]
[1723408601600,2.73061,2563.6,2562.9,2.73121]
[1723408601786,7.6814928,2563.5,2563.0,3.0]
[1723408602098,7.6814928,2563.5,2562.8,3.0]
[1723408602099,0.0786928,2563.5,2563.4,5.46148]
[1723408602493,7.6028,2563.8,2563.5,5.46121]
[1723408602659,7.6028,2563.8,2563.6,2.73052]
[1723408602854,0.07880242,2563.7,2563.5,2.73056]
[1723408603129,0.07880242,2563.7,2563.6,8.53906775]
[1723408603256,7.6028,2564.2,2564.1,2.73]
[1723408603670,7.6028,2564.2,2564.1,5.46]
[1723408604300,7.6028,2564.8,2564.3,2.72969]
[1723408604599,7.6028,2564.8,2564.4,2.72962]
[1723408604953,7.6028,2564.8,2564.3,2.72969]
[1723408605496,2.72948,2564.6,2564.1,0.07798886]
[1723408605700,2.75742779,2564.5,2563.9,2.73013]
[1723408605855,2.75742779,2564.5,2563.6,3.55]
[1723408605856,0.02784779,2564.5,2563.7,2.73041]
[1723408606061,7.6028,2564.2,2563.8,2.73032]
[1723408606571,7.6028,2564.2,2563.7,2.73035]
[1723408606781,7.6028,2564.6,2563.8,0.07800324]
[1723408606982,7.6028,2564.6,2564.3,2.7297]
[1723408607369,0.02784779,2564.5,2563.9,5.73015]
[1723408607570,7.6028,2564.6,2564.1,2.72998]
[1723408607879,0.02784779,2564.5,2563.9,5.73012]
[1723408608207,10.3323,2564.6,2564.1,2.72999]
[1723408608411,7.6028,2564.6,2564.1,2.72999]
[1723408608609,5.48706779,2564.5,2563.8,2.73023]
[1723408608809,7.6028,2564.6,2563.8,0.07800318]
[1723408608970,7.6028,2564.6,2564.2,2.72989]
[1723408609512,7.6028,2564.6,2564.0,2.73003]
[1723408609875,7.6028,2564.6,2564.2,2.72987]
[1723408610076,7.6028,2564.6,2563.6,5.73043]
[1723408610077,2.72985,2564.3,2563.6,5.73043]
[1723408610417,7.7232,2565.0,2564.7,2.7293]
[1723408610781,7.7232,2565.0,2564.5,2.72951]
[1723408611113,7.7232,2565.0,2564.5,5.45901]
[1723408611308,7.7232,2565.0,2564.5,2.7295]
[1723408611811,0.02784779,2564.9,2564.3,2.72968]
[1723408612009,2.75700779,2564.9,2564.3,2.72968]
[1723408612309,7.7232,2565.4,2564.8,2.72918]
[1723408612512,7.7232,2565.4,2564.6,5.45881]
[1723408612513,2.72878,2565.3,2564.6,5.45881]
[1723408612687,7.7232,2565.1,2564.0,6.833]
[1723408612888,7.7232,2564.8,2564.2,5.45963]
[1723408613102,7.7232,2564.8,2564.3,0.55]
[1723408613277,7.7232,2564.8,2564.3,3.27969]
[1723408613790,2.75729779,2564.7,2564.0,5.73004]
[1723408613988,2.72963,2564.5,2563.8,7.15272351]
[1723408614289,7.75104779,2564.4,2563.9,2.73021]
[1723408614498,7.7232,2564.4,2563.9,2.73016]
[1723408614699,2.73006,2564.1,2563.8,4.42246351]
[1723408614927,0.10756292,2564.3,2563.4,2.73065]
[1723408615213,7.7232,2563.9,2563.2,3.833]
[1723408615437,7.7232,2563.9,2563.7,2.73034]
[1723408615438,0.07930346,2563.8,2563.7,2.73034]
[1723408616384,0.07930346,2563.8,2563.5,2.73055]
[1723408616580,7.7232,2563.9,2563.5,2.73055]
[1723408616788,0.07886991,2563.8,2563.5,2.73055]
[1723408617110,0.07886991,2563.8,2563.6,2.73053]
[1723408617479,0.07886991,2563.8,2563.5,0.846123]
[1723408617679,0.07886991,2563.8,2563.4,2.73068]
[1723408617680,0.1067177,2563.8,2563.2,2.73089]
[1723408617985,2.73067,2563.5,2562.9,2.73127]
[1723408618187,0.07871873,2563.4,2562.9,2.73127]
[1723408618383,0.07871873,2563.4,2562.8,2.73135]
[1723408618384,7.7232,2563.2,2562.8,2.73135]
[1723408618589,0.07808548,2563.1,2562.6,2.7315]
[1723408618800,0.07808548,2563.1,2562.5,2.73167]
[1723408618801,5.54036548,2563.1,2562.5,2.73167]
[1723408618994,5.54036548,2563.1,2562.8,2.73131]
[1723408618995,0.07808548,2563.1,2562.8,2.73131]
[1723408619226,0.07808548,2563.1,2562.9,0.07803539]
[1723408619525,0.07808548,2563.1,2563.0,5.46234]
[1723408619678,7.7232,2563.5,2563.1,2.73102]
[1723408619883,0.02784779,2563.4,2562.8,2.73131]
[1723408620118,7.7232,2563.5,2562.9,3.0]
[1723408620326,2.73087,2563.3,2562.8,2.73131]
[1723408620633,7.7232,2563.2,2562.7,2.73149]
[1723408620795,7.7232,2563.2,2562.7,0.884632]
[1723408620986,7.7232,2563.2,2563.0,2.73108]
[1723408621184,7.7232,2563.5,2563.3,2.73082]
[1723408621612,7.7232,2563.5,2563.1,2.73097]
[1723408622028,7.7232,2563.5,2563.3,2.73083]
[1723408622211,7.7232,2563.5,2563.3,3.27697]
[1723408622411,5.72981,2564.3,2563.3,3.27697]
[1723408622412,7.7232,2564.3,2563.3,0.54618]
[1723408622612,2.72977,2564.4,2563.3,0.54618]
[1723408622613,2.73017,2564.0,2563.3,3.54618]
[1723408622835,2.72929,2564.8,2563.2,3.0]
[1723408622836,10.45358,2563.8,2563.2,3.0]
[1723408623140,7.7232,2563.8,2563.3,0.07802571]
[1723408623297,7.7232,2563.8,2563.6,2.7305]
[1723408623640,7.7232,2563.4,2562.1,2.73213]
[1723408623849,7.21238736,2563.8,2561.7,3.75008546]
[1723408623850,2.73114,2563.1,2561.7,6.48259546]
[1723408624036,7.75104779,2563.0,2562.2,2.73195]
[1723408624333,7.75104779,2563.0,2562.4,2.73174]
[1723408624548,2.73128,2562.9,2562.1,2.73207]
[1723408624749,0.02784779,2562.8,2562.3,2.7319]
[1723408624913,0.02784779,2562.9,2562.4,2.73174]
[1723408625314,7.7232,2563.0,2562.7,2.73141]
[1723408625508,7.7232,2563.0,2562.7,5.46283]
[1723408625764,7.7232,2563.0,2562.7,2.73141]
[1723408626128,0.02784779,2562.9,2562.3,5.73185]
[1723408626331,7.7232,2563.0,2562.4,3.0]
[1723408626645,7.7232,2563.0,2562.5,2.73168]
[1723408626839,7.7232,2563.0,2562.5,2.73163]
[1723408627243,7.7232,2563.0,2562.7,2.73148]
[1723408627431,7.7232,2563.0,2562.8,2.73138]
[1723408627626,7.7232,2563.0,2562.4,3.0]
[1723408627855,7.7232,2563.4,2562.6,2.73159]
[1723408628163,7.7232,2563.9,2563.5,2.73063]
[1723408628315,7.7232,2563.9,2563.5,2.73055]
[1723408628661,7.7232,2563.9,2562.7,3.55]
[1723408628662,2.73082,2563.4,2562.7,3.28141]
[1723408628881,7.7232,2563.2,2562.5,2.73166]
[1723408629168,7.7232,2563.2,2562.7,2.73146]
[1723408629169,0.02784779,2563.1,2562.7,2.73146]
[1723408629315,0.02784779,2563.1,2562.6,3.0]
[1723408629518,0.02784779,2563.1,2562.6,5.73155]
[1723408629939,0.02784779,2563.1,2562.7,2.73147]
[1723408630146,7.7232,2563.2,2562.6,3.0]
[1723408630460,7.7232,2563.2,2562.9,2.73119]
[1723408630817,7.7232,2563.2,2562.7,3.92802903]
[1723408630818,7.7232,2563.2,2563.1,2.73106]
[1723408631166,2.73011,2564.0,2563.1,2.73106]
[1723408631167,7.4197,2563.7,2563.3,2.73079]
[1723408631475,7.4197,2563.7,2563.5,2.73057]
[1723408631753,7.4197,2563.7,2563.6,2.73053]
[1723408631955,7.4197,2564.3,2563.8,2.73026]
[1723408632320,7.4197,2564.3,2563.8,2.73031]
[1723408632520,7.4197,2564.3,2564.1,2.72993]
[1723408632746,0.06795467,2564.2,2563.9,5.73013]
[1723408632948,0.06795467,2564.2,2564.0,0.55]
[1723408633163,0.02784779,2564.2,2563.7,2.73037]
[1723408633458,0.06678785,2564.1,2563.7,2.73037]
[1723408633761,0.06678785,2564.1,2563.5,3.0]
[1723408633762,2.73032,2563.8,2563.5,3.0]
[1723408634055,7.63744779,2564.0,2563.1,2.73098]
[1723408634056,0.09476844,2563.7,2563.3,2.73083]
[1723408634379,0.06692065,2563.7,2563.3,2.73079]
[1723408634575,2.7307,2563.5,2562.9,2.73125]
[1723408634865,7.6096,2563.6,2562.9,2.73125]
[1723408634866,0.09447323,2563.4,2562.9,2.73118]
[1723408635246,0.09447323,2563.4,2563.0,3.0]
[1723408635919,0.09447323,2563.4,2562.3,0.67499122]
[1723408635920,7.6096,2563.2,2562.5,2.73163]
[1723408636121,0.06662544,2563.4,2563.3,5.4617]
[1723408636455,7.6096,2563.7,2562.6,0.35119047]
[1723408636456,7.6096,2563.7,2562.7,0.07801748]
[1723408636617,7.6096,2563.7,2563.3,2.73077]
[1723408636818,7.6096,2563.7,2563.4,2.73074]
[1723408637049,7.6096,2563.7,2563.3,2.73077]
[1723408637671,7.6096,2564.5,2563.4,0.07801259]
[1723408637818,7.6096,2564.5,2562.8,2.73135]
[1723408637819,2.72985,2564.3,2563.7,2.73035]
[1723408638021,2.72985,2564.3,2563.7,2.73039]
[1723408638022,2.72984,2564.3,2563.7,2.73039]
[1723408638379,7.6096,2563.8,2563.3,3.0]
[1723408638520,2.73061,2563.6,2563.0,2.7311]
[1723408639163,0.02784779,2563.7,2563.3,2.73085]
[1723408639467,0.02784779,2563.7,2563.1,2.731]
[1723408639468,2.75827779,2563.7,2563.1,2.731]
[1723408639618,0.02784779,2563.7,2563.1,2.731]
[1723408639815,0.02784779,2563.7,2562.9,2.7312]
[1723408639816,10.3402,2563.6,2562.9,2.7312]
[1723408640137,0.02784779,2563.5,2562.2,7.70077213]
[1723408640346,0.02784779,2563.5,2562.0,3.50975887]
[1723408640347,7.6096,2563.3,2562.8,2.7313]
[1723408640550,7.6096,2563.3,2562.8,3.00443]
[1723408640848,7.6096,2563.3,2563.1,2.73097]
[1723408641156,7.6096,2563.3,2563.0,2.7311]
[1723408641520,7.6096,2563.3,2563.1,2.73106]
[1723408641741,7.6096,2563.7,2563.4,2.73072]
[1723408641969,7.6096,2563.7,2562.8,0.27313]
[1723408642138,7.6096,2564.1,2563.8,2.73024]
[1723408642465,7.6096,2564.1,2563.9,2.7302]
[1723408642674,0.02784779,2564.0,2563.3,5.73079]
[1723408642819,7.6096,2563.6,2563.1,8.46195]
[1723408643155,7.6096,2563.6,2563.1,5.73097]
[1723408643560,2.75854779,2563.5,2563.1,3.0]
[1723408643720,2.75854779,2563.5,2563.0,3.0]
[1723408643721,0.02784779,2563.5,2563.0,3.0]
[1723408643922,10.34052,2563.3,2563.0,3.0]
[1723408644123,0.02784779,2563.2,2562.8,5.73134]
[1723408644350,0.02784779,2563.2,2562.8,3.0]
[1723408645363,0.02784779,2563.2,2562.7,2.73142]
[1723408645561,0.02784779,2563.2,2562.7,5.46283]
[1723408645778,0.02784779,2563.2,2562.7,2.73141]
[1723408645947,7.6096,2562.9,2562.3,2.73184]
[1723408646258,2.73039,2563.8,2562.0,3.75032918]
[1723408646259,7.6096,2563.3,2562.9,2.73119]
[1723408646664,7.6096,2563.3,2563.2,2.73096]
[1723408646974,7.6096,2563.3,2563.1,2.73099]
[1723408647121,7.6096,2563.3,2562.9,2.73119]
[1723408647466,0.02784779,2563.2,2563.0,3.0]
[1723408647759,0.02784779,2563.2,2562.8,2.73131]
[1723408647924,0.06413812,2563.1,2562.8,2.73131]
[1723408648547,2.73117,2563.0,2562.4,2.73176]
[1723408648725,7.63744779,2562.9,2562.4,2.73176]
[1723408649049,7.63744779,2562.9,2562.1,3.835]
[1723408649050,0.0639241,2562.9,2562.8,2.73138]
[1723408649380,7.6905,2563.3,2563.0,2.73115]
[1723408649596,3.0,2563.9,2562.5,2.73168]
[1723408649597,7.6905,2563.9,2563.4,2.73067]
[1723408649883,7.6905,2563.9,2563.6,2.73053]
[1723408650084,7.6905,2563.9,2563.4,2.73067]
[1723408650288,0.02784779,2563.8,2563.5,2.73061]
[1723408650494,0.02784779,2563.8,2563.2,2.73089]
[1723408650495,3.53000257,2563.8,2563.2,2.73089]
[1723408650643,0.79968257,2563.8,2563.4,2.73072]
[1723408650843,0.79968257,2563.8,2563.2,5.46182]
[1723408651086,0.79968257,2563.8,2563.4,2.73068]
[1723408651087,0.02784779,2563.8,2563.4,2.73068]
[1723408651299,7.6905,2563.9,2563.0,3.0]
[1723408651578,7.6905,2563.9,2563.6,2.73046]
[1723408652168,7.6905,2563.9,2563.4,5.46133]
[1723408652369,7.6905,2563.9,2563.2,2.7309]
[1723408652370,2.75816779,2563.8,2563.2,2.7309]
[1723408652605,0.02784779,2563.7,2563.2,2.7309]
[1723408652803,2.75832779,2563.7,2563.2,2.7309]
[1723408652991,0.02784779,2563.7,2563.2,2.73094]
[1723408653201,0.02784779,2563.7,2563.0,5.73108]
[1723408653202,7.6905,2563.6,2563.0,5.73108]
[1723408653370,2.75854779,2563.5,2563.0,3.0]
[1723408653571,2.73075,2563.4,2562.7,2.73149]
[1723408653794,10.44924779,2563.3,2562.7,2.73149]
[1723408654015,7.6905,2563.0,2562.3,0.67507479]
[1723408654173,7.6905,2563.0,2562.8,2.73131]
[1723408654371,0.27585978,2563.4,2563.1,2.731]
[1723408654372,7.6905,2563.4,2563.1,2.731]
[1723408654616,7.6905,2563.4,2563.1,5.462]
[1723408654901,7.6905,2563.4,2563.1,2.731]
[1723408655511,7.6905,2563.1,2562.4,0.67507479]
[1723408655679,0.02784779,2563.0,2562.5,2.73161]
[1723408656005,0.02784779,2563.0,2562.7,2.73147]
[1723408656317,0.02784779,2563.0,2562.2,2.732]
[1723408656468,0.02784779,2563.0,2562.6,2.73153]
[1723408656674,7.6905,2563.1,2562.8,2.73128]
[1723408656994,10.4211,2563.6,2563.0,2.73117]
[1723408657170,0.02784779,2563.5,2563.2,2.73095]
[1723408657367,0.02784779,2563.5,2563.2,2.73088]
[1723408658470,0.02784779,2563.5,2563.0,2.73108]
[1723408658975,1.07273657,2563.5,2563.0,2.73108]
[1723408659172,3.80340657,2563.5,2563.0,2.73108]
[1723408659514,1.07273657,2563.5,2563.2,2.7309]
[1723408659678,7.6905,2563.6,2563.2,2.7309]
[1723408659879,0.02784779,2563.5,2563.2,2.7309]
[1723408660419,7.6905,2563.6,2562.9,2.7312]
[1723408660710,7.6905,2563.6,2562.7,3.0]
[1723408660711,7.6905,2563.6,2563.5,2.73064]
[1723408661118,7.6905,2564.1,2563.6,2.73047]
[1723408661283,3.30395879,2564.0,2563.3,5.46156]
[1723408661483,2.73021,2563.9,2563.3,2.73077]
[1723408661695,7.6905,2563.6,2563.0,3.0]
[1723408661897,0.02784779,2563.5,2563.1,2.73097]
[1723408662094,7.6905,2563.6,2563.1,2.73097]
[1723408662313,7.6905,2563.6,2563.2,2.7309]
[1723408662489,0.05795472,2563.5,2563.2,2.6809]
[1723408662692,0.05795472,2563.5,2563.3,2.73084]
[1723408663015,0.05795472,2563.5,2563.1,2.73096]
[1723408663381,0.08580251,2563.5,2563.1,2.73096]
[1723408663583,1.13648776,2563.5,2562.7,2.73142]
[1723408663896,7.6905,2563.1,2562.8,2.73138]
[1723408664221,0.05754451,2563.0,2562.8,2.73138]
[1723408664518,0.05754451,2563.0,2562.9,5.46256]
[1723408664819,7.6905,2563.5,2562.6,7.42479794]
[1723408665114,0.02784779,2563.4,2562.9,2.73128]
[1723408665284,7.6905,2563.5,2563.0,2.73109]
[1723408665474,7.6905,2563.5,2563.1,2.731]
[1723408665475,0.08551619,2563.4,2563.1,2.731]
[1723408665675,0.0576684,2563.4,2563.2,2.73089]
[1723408665876,7.6905,2563.5,2563.2,2.73089]
[1723408666109,0.05777458,2563.4,2563.3,2.73085]
[1723408666318,0.05777458,2563.4,2563.3,5.4617]
[1723408666474,0.05777458,2563.4,2563.3,2.73085]
[1723408666902,0.05777458,2563.4,2563.3,5.4617]
[1723408667121,7.6905,2563.8,2563.6,2.73051]
[1723408667323,7.6905,2563.8,2563.7,2.73042]
[1723408667535,7.6905,2563.8,2563.6,2.73047]
[1723408668009,7.6905,2563.8,2563.7,2.73042]
[1723408668344,7.6905,2563.8,2563.6,2.73045]
[1723408668862,7.6905,2563.8,2562.9,0.67487212]
[1723408668863,7.6905,2563.6,2562.9,0.67487212]
[1723408668995,0.76905,2563.8,2562.5,3.7492896]
[1723408668996,7.6905,2563.3,2562.5,3.7492896]
[1723408669196,7.1844,2562.9,2562.5,2.73163]
[1723408669609,0.02784779,2562.8,2562.5,2.73163]
[1723408669820,0.02784779,2562.8,2562.3,5.46372]
[1723408670023,0.99434278,2562.8,2561.9,3.7492896]
[1723408670232,7.1844,2562.5,2561.6,4.54959401]
[1723408670439,7.1844,2562.2,2561.6,0.1235917]
[1723408670651,7.1844,2562.0,2561.6,0.1235917]
[1723408670938,0.99434278,2562.8,2561.6,0.1235917]
[1723408670939,9.9158,2562.8,2561.7,2.81058789]
[1723408671141,7.1844,2562.2,2561.6,0.1235917]
[1723408671298,0.02784779,2562.1,2561.6,0.1235917]
[1723408671494,12.64952,2561.7,2561.6,0.1235917]
[1723408671808,7.1844,2561.7,2561.6,0.1235917]
[1723408672011,12.64952,2561.7,2561.6,0.1235917]
[1723408672220,9.91696,2561.7,2561.6,0.1235917]
[1723408672423,11.181903,2561.7,2561.6,0.1235917]
[1723408673013,13.914463,2561.7,2561.6,0.1235917]
[1723408673194,13.914463,2561.7,2560.9,0.12502574]
[1723408673403,7.1844,2561.5,2560.9,0.12502574]
[1723408673640,9.9177,2561.0,2560.9,0.12502574]
[1723408673823,12.651,2561.0,2560.9,0.12502574]
[1723408674108,15.38526,2560.7,2560.6,5.05050505]
[1723408674343,12.65228,2560.4,2560.3,0.005]
[1723408674513,17.201448,2560.4,2560.3,0.005]
[1723408675106,7.1844,2560.4,2560.3,0.005]
[1723408675947,12.65228,2560.4,2560.3,0.005]
[1723408676096,9.91909,2559.7,2559.0,0.1235917]
[1723408676737,12.65378,2559.7,2559.0,0.1235917]
[1723408676938,7.1844,2559.7,2559.5,2.7349]
[1723408677245,7.1844,2559.7,2559.0,0.1235917]
[1723408677415,7.1844,2559.7,2559.3,2.73509]
[1723408677614,7.22763023,2559.7,2559.5,2.73489]